Cogmind - Beta 17 @@@ ROGUE MODE // 2026.08.24 @ 17:20:50 Player: LandRaider Result: Destroyed by Combat Programmer with EMDS Performance ------------- Evolutions (8) 4000 Regions Visited (15) 3000 Robots Destroyed (118) 590 Value Destroyed (3311) 3311 Prototype IDs (51) 1020 Alien Tech Used (3) 600 Bonus (15023) 15023 TOTAL SCORE: 27544 Bonus ------- High Alert Combat Kills 167 Follower Combat Kills 950 Prayed to X0-1V1 5000 Major X0-1V1 Interference 7450 Scanned by Researcher 1000 Pursued by Intercept 500 Friendly Fire -44 Cogmind --------- Core Integrity 0/1250 Matter 700/700 Energy 150/150 System Corruption 19% +Membrane Temperature Cool (0) Movement Core (250) Ox4 Location -2/Section 7 Parts ------- > --- POWER (2) -------- Micro Antimatter Reactor > --- PROPULSION (7) --- Improved Q-thruster Experimental Q-thruster > --- UTILITY (13) ----- Advanced Signal Interpreter Experimental Armor Integrity Analyzer Experimental Transmission Jammer Experimental Cloaking Device Hacking Suite Improved System Guard Spacefold Activator > --- WEAPON (2) ------- Vibroblade > --- INVENTORY (6) ---- Micro Fission Core Diametric Drive Advanced Force Booster Advanced ECM Suite Neutron Missile Launcher Heavy Scimitar of Distortion Peak State ------------ > --- POWER ------------ Micro Antimatter Reactor Graviton Reactor > --- PROPULSION ------- Cooled Field Propulsion Drive Field Propulsion Array Improved Q-thruster Experimental Q-thruster Experimental Q-thruster Experimental Q-thruster > --- UTILITY ---------- Improved Heat Sink Advanced Sensor Array Advanced Signal Interpreter Improved Melee Analysis Suite Experimental Armor Integrity Analyzer Experimental Transmission Jammer Experimental Cloaking Device Advanced EM Shield Hacking Suite Hacking Suite Improved System Guard X0-1V1's Piety Tracker Spacefold Activator > --- WEAPON ----------- Cooled Nova Cannon Vibroblade > --- INVENTORY -------- Micro Fission Core Diametric Drive Advanced Force Booster Advanced ECM Suite Neutron Missile Launcher Heavy Scimitar of Distortion [Rating: 199] Favorites ----------- Power Ion Engine Engine Ion Engine Power Core Light Nuclear Core Reactor Micro Antimatter Reactor Propulsion Aluminum Leg Treads Light Treads Leg Aluminum Leg Wheel Wheel Hover Unit Cooled Airjet Flight Unit VTOL Module Utility X0-1V1's Piety Tracker Device X0-1V1's Piety Tracker Storage Large Storage Unit Processor Improved Signal Interpreter Hackware Hacking Suite Protection Utility Shielding Artifact Spacefold Activator Weapon Particle Gun Energy Gun Particle Gun Energy Cannon Cooled Nova Cannon Ballistic Gun Light Assault Rifle Ballistic Cannon Advanced Assault Cannon Launcher Heavy Missile Launcher Special Weapon Mining Laser Impact Weapon Impact Mace Slashing Weapon Plasma Sword Piercing Weapon Makeshift Spear Special Melee Weapon Improved Datajack Build | -11 -10 -10 -8 -7 -7 -7 -6 -6 -6 -5 -4 -3 -2 -2 -2 ------- Run | Yrd Mat Sub Mat Fac Was Fac Fac Low Low Fac Fac Res Res Tes Sec Slots Evolved 16 | . . . 4 2 . . 2 . . 2 2 2 2 . . Power . | . . . . . . . . . . . . . . . . Propulsion 6 | . . . 1 . . . 2 . . 1 1 1 . . . Utility 10 | . . . 3 2 . . . . . 1 1 1 2 . . Weapon . | . . . . . . . . . . . . . . . . Parts Attached 198 | 7 15 6 7 14 3 20 14 1 . 13 19 25 31 18 5 Power 22 | 1 3 . . 2 . 4 3 . . 1 1 2 4 1 . Engine 12 | 1 3 . . . . 4 2 . . . . 2 . . . Core 6 | . . . . 2 . . 1 . . 1 1 . 1 . . Reactor 4 | . . . . . . . . . . . . . 3 1 . Propulsion 52 | 2 7 2 2 4 . 4 1 . . 5 6 7 7 2 3 Treads 4 | . 1 2 . . . . . . . . . . 1 . . Leg 8 | . 6 . 2 . . . . . . . . . . . . Wheel 2 | 2 . . . . . . . . . . . . . . . Hover 16 | . . . . 2 . 4 1 . . 2 2 5 . . . Flight 22 | . . . . 2 . . . . . 3 4 2 6 2 3 Utility 95 | 2 3 2 4 6 2 9 8 . . 6 10 15 17 9 2 Device 60 | 1 1 2 2 6 2 6 5 . . 5 6 10 7 7 . Storage 7 | 1 2 . . . . . . . . 1 2 1 . . . Processor 15 | . . . 1 . . 3 3 . . . . 2 3 2 1 Hackware 7 | . . . . . . . . . . . 2 . 5 . . Protection 5 | . . . 1 . . . . . . . . 2 2 . . Artifact 1 | . . . . . . . . . . . . . . . 1 Weapon 29 | 2 2 2 1 2 1 3 2 1 . 1 2 1 3 6 . Energy Gun 6 | . 1 1 1 1 . . . . . . . . . 2 . Energy Cannon 4 | . . . . . . 1 . . . 1 . . 1 1 . Ballistic Gun 4 | 2 . . . 1 . . . . . . . . 1 . . Ballistic Cannon 2 | . . . . . . . 1 . . . 1 . . . . Launcher 4 | . . . . . . 2 . 1 . . . . . 1 . Special Weapon 1 | . 1 . . . . . . . . . . . . . . Impact Weapon 2 | . . . . . . . 1 . . . . 1 . . . Slashing Weapon 4 | . . . . . . . . . . . 1 . 1 2 . Piercing Weapon 1 | . . 1 . . . . . . . . . . . . . Special Melee Weapon 1 | . . . . . 1 . . . . . . . . . . Unidentified Prototypes 31 | . . 2 . 1 . 2 1 . . . 2 2 4 13 4 Parts Lost 105 | . 5 2 3 13 5 8 1 . . 17 1 32 4 2 12 Power 13 | . 1 . . 2 . 3 1 . . 3 . 2 . . 1 Propulsion 29 | . 2 1 . 3 . 1 . . . 4 1 13 . . 4 Utility 51 | . 1 . 2 6 3 3 . . . 8 . 16 4 2 6 Weapon 12 | . 1 1 1 2 2 1 . . . 2 . 1 . . 1 Highest Loss Streak 14 | . 3 2 3 10 5 5 1 . . 14 1 10 3 1 12 To Critical Strikes . | . . . . . . . . . . . . . . . . Average Backups 9 | 4 11 13 10 11 5 4 4 4 5 3 7 9 5 5 6 Power . | . 1 1 1 . 1 . . . . . . 1 1 1 1 Propulsion 1 | 2 3 1 1 1 2 1 . 1 1 . 2 1 . 2 . Utility 4 | . 4 8 7 6 1 2 3 3 3 1 2 3 1 . 2 Weapon 1 | 1 2 1 . 2 . . . . 1 1 1 2 1 1 2 Tool/Special . | . . . . . . . . . . . . . . . . Unused Backups 31 | . 1 . . 7 4 4 1 1 . . . 3 . 6 4 Power 4 | . . . . . 2 . 1 . . . . . . . 1 Propulsion 7 | . 1 . . 1 . 2 . . . . . . . 3 . Utility 14 | . . . . 4 . 2 . . . . . 3 . 2 3 Weapon 6 | . . . . 2 2 . . 1 . . . . . 1 . Tool/Special . | . . . . . . . . . . . . . . . . Average Slot Usage (%) 84 | . 99 100 92 71 56 68 82 91 89 84 84 67 42 91 90 Engine 7 | . 14 14 9 3 . 11 9 6 6 3 . . . . . Core 1 | . . . . 5 5 . . 6 6 4 3 2 . 2 . Treads 2 | . 4 6 10 . . . . . . . . . . . . Leg 7 | . 16 21 12 2 . . . . . . . . . . . Wheel 1 | . 6 . . . . . . . . . . . . . . Hover 4 | . . . . 3 11 14 19 18 18 20 5 6 . . . Flight 5 | . . . . 5 . . . . . . 23 12 9 24 23 Device 20 | . 13 14 25 23 26 17 30 37 33 30 23 22 10 26 26 Storage 7 | . 14 14 9 7 . . . . . 2 5 3 . . . Processor 5 | . . . 7 . . 17 15 12 12 11 10 5 5 9 13 Hackware 1 | . . . . . . . . . . . 5 5 8 11 7 Energy Gun 5 | . 8 14 8 6 5 . . . . . . . . . . Ballistic Gun 4 | . 18 2 . 2 . . . . . . . . . . . Slashing Weapon 1 | . . . . . 1 6 . . . . 1 3 2 5 4 Piercing Weapon 2 | . . 7 9 4 . . . . . . . . . . . Peak Build Rating 199 | 7 10 25 29 44 45 49 71 75 75 87 79 98 137 186 199 Average Rating 45 | 5 8 21 25 30 33 43 60 74 72 71 69 73 66 160 184 On Entrance 51 | . 7 10 24 28 44 10 28 71 75 71 36 77 19 136 184 Avg Prop Armor Cover (%) 8 | . 11 . 7 6 . . . . . 7 10 3 26 . 11 Naked Turns 12 | . . . . . 10 . . . . . . . 2 . . Heaviest Build 50 | 14 30 31 34 41 37 17 36 33 33 36 28 47 46 50 49 Greatest Support 59 | 26 26 40 40 20 16 23 36 36 36 54 50 59 47 53 53 Greatest Overweight (x) 15 | . 8 1 1 11 2 1 . . . . 1 15 3 1 14 Average Overweight (x) . | . . . . 3 . . . . . . . . . . . Largest Inventory Capacity 15 | 8 15 15 15 15 15 5 5 5 5 6 11 11 6 6 6 Average Capacity 10 | 7 12 15 15 15 5 5 5 5 5 5 9 10 6 6 6 Most Carried 15 | 8 15 14 13 15 12 5 5 5 5 6 11 11 6 6 6 Average Carried 9 | 5 11 13 10 11 5 4 4 4 5 3 7 9 5 5 5 Final Capacity 15 | 8 15 15 15 15 5 5 5 5 5 6 11 6 6 6 6 Final Carried 13 | 8 13 11 9 10 5 3 5 5 5 5 11 6 6 6 6 Class Distribution -------------------- 41% | Mutant 27% | Scavenger-Mutant 8% | Hacker-Sprinter 5% | Infiltrator-Ninja 4% | Scavenger-Scout 3% | Scavenger-Ninja Dominant Class ---------------- Scavenger-Mutant | -10/Materials Mutant | -10/Subcaves Mutant | -8/Materials Scavenger-Mutant | -7/Factory Scavenger-Mutant | -7/Waste Mutant | -7/Factory Infiltrator-Scout | -6/Factory Infiltrator-Ninja | -6/Lower Caves Infiltrator-Ninja | -6/Lower Caves Infiltrator-Mutant | -5/Factory Scavenger-Ninja | -4/Factory Scavenger-Mutant | -3/Research Hacker-Sprinter | -2/Research Hacker-Sprinter | -2/Testing Hacker-Sprinter | -2/Section 7 Resources | -11 -10 -10 -8 -7 -7 -7 -6 -6 -6 -5 -4 -3 -2 -2 -2 ----------- Run | Yrd Mat Sub Mat Fac Was Fac Fac Low Low Fac Fac Res Res Tes Sec Matter Collected 3475 | 326 462 291 70 309 . 325 168 118 69 27 315 241 219 453 82 Remotely 60 | . . . . . . . . . . . . 60 . . . Salvage Created 5086 | 179 940 39 157 204 . 436 51 36 99 130 651 922 249 911 82 Parts 257 | 17 65 5 6 16 . 31 2 6 3 9 12 30 14 38 3 Haulers Intercepted 10 | . 2 . . . . 2 . . . . 1 2 1 2 . Recyclers Shooed 5 | 1 . . . . . . . . . . 1 2 . 1 . Parts Field Recycled . | . . . . . . . . . . . . . . . . Retrieved Matter . | . . . . . . . . . . . . . . . . Parts Self-Destructed 19 | . . 10 . . . . . 7 2 . . . . . . Prevented . | . . . . . . . . . . . . . . . . Parts Restored . | . . . . . . . . . . . . . . . . Kills | -11 -10 -10 -8 -7 -7 -7 -6 -6 -6 -5 -4 -3 -2 -2 -2 ------- Run | Yrd Mat Sub Mat Fac Was Fac Fac Low Low Fac Fac Res Res Tes Sec Combat Hostiles Destroyed 57 | . 17 3 2 5 . 4 3 3 2 5 1 1 4 7 . Melee 16 | . . . 2 3 . 4 3 . . . . . 4 . . Guns 21 | . 17 3 . 1 . . . . . . . . . . . Cannons 7 | . . . . 1 . . . . . 5 . . . 1 . AOE 11 | . . . . . . . . 3 2 . . . . 6 . Classes Destroyed 18 | 3 4 1 . 2 . 3 . . 2 . . . 1 2 . Worker 14 | 2 1 . 1 . . 3 . . . . 1 2 1 2 1 Builder 4 | . . . . . . 2 . . . . 1 1 . . . Tunneler 6 | 4 . . . . . . . . . . 2 . . . . Hauler 10 | . 2 . . . . 2 . . . . 1 2 1 2 . Recycler 13 | 1 2 . . . . . . . . . 3 4 . 3 . Mechanic 1 | . . . . . . 1 . . . . . . . . . Operator 2 | . . . . . . . . . . . . . . 2 . Watcher 7 | . 3 . 1 . . . . . . . . 2 . 1 . Swarmer 26 | . 3 3 . 2 . . 3 3 . 5 . . 3 4 . Cutter 1 | . . . . . . . . . . . . . 1 . . Grunt 20 | . 14 . 2 . . 2 . . . . . . . 2 . Brawler 1 | . . . . . . 1 . . . . . . . . . Researcher 4 | . . . . . . . . . . . . . . 3 1 Sentry 4 | . . . . 2 . . . . . . 1 1 . . . Hunter 2 | . . . . . . . . . 2 . . . . . . Programmer 3 | . . . . 1 . 1 . . . . . . . 1 . Artisan 1 | . . 1 . . . . . . . . . . . . . Samaritan 1 | . . . . . . . . . 1 . . . . . . Best Kill Streak 16 | 7 5 3 3 2 . 3 3 3 2 5 3 4 4 16 1 Combat Bots Only 6 | . 5 3 2 2 . 3 3 3 2 5 1 1 3 6 . Max Kills in Single Turn 4 | 1 1 2 1 1 . 1 1 2 2 1 1 1 1 4 1 Gunslinging 1 | . . 1 . . . . . . . . . . . . . Exploded 3 | . . . . . . . . 2 2 . . . . 3 . Melee 1 | . . . 1 1 . 1 1 . . . . . 1 . . Uniques/NPCs Destroyed . | . . . . . . . . . . . . . . . . Combat | -11 -10 -10 -8 -7 -7 -7 -6 -6 -6 -5 -4 -3 -2 -2 -2 -------- Run | Yrd Mat Sub Mat Fac Was Fac Fac Low Low Fac Fac Res Res Tes Sec Hostile Shots Fired 1111 | . 85 27 . 176 5 134 21 3 4 74 10 337 101 43 91 Missed 433 | . 24 7 . 65 1 75 2 3 4 28 3 135 49 27 10 Hits 678 | . 61 20 . 111 4 59 19 . . 46 7 202 52 16 81 Melee 35 | . . . . . 4 . . . . . . 19 12 . . Projectile 643 | . 61 20 . 111 . 59 19 . . 46 7 183 40 16 81 AOE 7 | . . . . . . 1 . . . 4 . . 2 . . Critical Strikes 18 | . . . . . 3 . . . . 1 1 3 9 . 1 Part Disruptions 1 | . . . . . . . . . . . . . 1 . . Damage Taken 11654 | . 847 164 497 1039 146 682 270 24 29 1179 136 3551 1108 327 1655 Core 3670 | . 199 38 288 301 113 112 43 . . 232 17 1042 595 51 639 Absorbed by Shields . | . . . . . . . . . . . . . . . . Redirected to Shielding 51 | . . . . 51 . . . . . . . . . . . Ignored by Resistances 732 | . . . . . . . . . . 12 . 476 137 94 13 Regen/Repaired (Parts) 1 | . . . . 1 . . . . . . . . . . . Core Remaining (%) 53 | 100 . 8 36 . . 12 . . 94 76 98 5 . . . Volleys Fired 235 | 14 85 26 16 21 4 1 10 2 3 19 11 . 1 15 7 Largest 2 | 2 2 2 1 2 1 1 1 1 1 1 1 . 1 1 1 Hottest 150 | 40 100 100 65 105 80 . 80 39 39 85 40 . 94 150 150 Shots Fired 338 | 28 165 29 17 24 4 1 10 2 3 19 11 . 1 15 9 Gun 261 | 28 164 22 17 24 4 . . . . . . . . 2 . Cannon 50 | . . . . . . . 10 . . 17 11 . 1 2 9 Launcher 19 | . . . . . . 1 . 2 3 2 . . . 11 . Special 8 | . 1 7 . . . . . . . . . . . . . Kinetic 188 | 28 140 3 . 4 . . 2 . . . 11 . . . . Thermal 129 | . 25 26 17 20 4 . 8 . . 17 . . . 3 9 Explosive 19 | . . . . . . 1 . 2 3 2 . . . 11 . Electromagnetic 2 | . . . . . . . . . . . . . 1 1 . Robot Hit Streak 18 | 6 18 2 3 8 3 . . . 1 3 4 . . 10 15 Robot Miss Streak 6 | 3 6 2 1 1 1 1 . . 3 4 1 . 1 . . Penetration Max . | . . . . . . . . . . . . . . . . Secondary Targets 5 | . 4 1 . . . . . . . . . . . . . Max Gunslinging Chain 1 | . 1 1 . . . . . . . . . . . . . Shots Hit Robots 276 | 15 104 7 7 17 4 20 5 . 1 13 18 25 14 17 9 Core Hits 162 | 10 47 4 5 10 3 10 1 2 5 6 6 8 6 36 3 Critical Kills 1 | . . . . . . . . . . . . . 1 . . Critical Parts Destroyed 5 | . . . . . . . 2 . . . 2 1 . . . Critical Strikes 22 | . 2 . 1 2 . 3 2 . . . 2 7 3 . . Burn 4 | . 2 . 1 1 . . . . . . . . . . . Smash 6 | . . . . . . . 2 . . . 2 1 1 . . Sever 11 | . . . . . . 3 . . . . . 6 2 . . Impale 1 | . . . . 1 . . . . . . . . . . . Melee Attacks 258 | . . 2 9 11 . 36 10 . . 5 29 73 34 32 17 Impact 48 | . . . . . . . 10 . . 5 20 4 9 . . Slashing 188 | . . . . . . 36 . . . . 9 69 25 32 17 Piercing 22 | . . 2 9 11 . . . . . . . . . . . Sneak Attacks 31 | . . . . . . 8 . . . . 7 10 3 3 . Combat Hostiles . | . . . . . . . . . . . . . . . . Follow-up Attacks 1 | . . . . . . . . . . . . 1 . . . Damage Inflicted 12021 | 159 1102 97 160 498 106 1527 234 270 214 474 1048 1691 836 3178 427 Guns 1713 | 159 1102 73 70 203 106 . . . . . . . . . . Cannons 792 | . . . . 53 . . . . . 275 161 . . 135 168 Explosions 2992 | . . . . . . 24 . 270 214 32 . . . 2452 . Melee 6466 | . . . 90 242 . 1489 234 . . 167 887 1671 836 591 259 Ramming 34 | . . . . . . 14 . . . . . 20 . . . Kinetic 1332 | 159 918 17 . 77 . . . . . . 161 . . . . Thermal 1399 | . 184 80 70 179 106 . . . . 275 . . . 337 168 Explosive 2790 | . . . . . . 24 . 270 214 32 . . . 2250 . Electromagnetic . | . . . . . . . . . . . . . . . . Impact 1227 | . . . . . . . 234 . . 167 701 31 94 . . Slashing 4907 | . . . . . . 1489 . . . . 186 1640 742 591 259 Piercing 332 | . . . 90 242 . . . . . . . . . . . Highest Corruption 34 | . . . 6 . . . 2 . 6 6 . 22 5 21 34 Average Corruption 10 | . . . 5 . . . 1 . 5 6 . 16 5 6 26 Corruption Purged 8 | . . . . . . . 2 . 1 . . . . . 5 Corruption Blocked . | . . . . . . . . . . . . . . . . Effects 62 | . . . 2 . . . 5 . 4 4 . 21 7 9 10 Message Errors 14 | . . . 1 . . . 1 . 1 . . 5 2 2 2 Matter Fused 15 | . . . 1 . . . 1 . 1 3 . 2 3 3 1 Heat Flow Errors 10 | . . . . . . . 1 . . 1 . 4 . . 4 Energy Discharges 8 | . . . . . . . 1 . 1 . . 4 1 . 1 Data Loss (minor) 9 | . . . . . . . 1 . 1 . . 4 1 2 . Data Loss (major) 2 | . . . . . . . . . . . . . . 2 . Misfires 1 | . . . . . . . . . . . . . . . 1 Misdirections 3 | . . . . . . . . . . . . 2 . . 1 Overload Shots 2 | . . . . . . . . . . . . . . 1 1 Overflow Damage 1623 | . . . . 18 . 306 130 52 . 84 305 309 104 294 21 Projectiles 34 | . . . . . . . . . . 11 13 . . 10 . Explosions 205 | . . . . . . . . 52 . 14 . . . 139 . Melee 1384 | . . . . 18 . 306 130 . . 59 292 309 104 145 21 Knockbacks 7 | . . . . . . . 2 . . 1 4 . . . . Impact 4 | . . . . . . . 2 . . 1 1 . . . . Kinetic 2 | . . . . . . . . . . . 2 . . . . Secondary 1 | . . . . . . . . . . . 1 . . . . Self-Inflicted Damage 312 | . . . . . . 31 . 26 29 99 . 10 . 117 . Shots 7 | . . . . . . 1 . 1 1 2 . . . 2 . Rammed 4 | . . . . . . 3 . . . . . 1 . . . Targets Rammed 4 | . . . . . . 3 . . . . . 1 . . . Kicked . | . . . . . . . . . . . . . . . . Crushed . | . . . . . . . . . . . . . . . . Highest Temperature 315 | . 289 50 72 42 . . 274 . . 276 17 315 58 138 315 Average Temperature 70 | . 61 26 35 18 . . 76 . . 72 17 104 26 35 132 Received Heat Transfer 1176 | . 384 . . 174 . 177 . . . 111 39 273 9 9 . Effects 8 | . . . . . . . 1 . . . . 5 . . 2 Shutdowns 1 | . . . . . . . . . . . . . . . 1 Energy Bleed 2 | . . . . . . . 1 . . . . . . . 1 Interference 5 | . . . . . . . . . . . . 5 . . . Siege Activations . | . . . . . . . . . . . . . . . . Martial Activations . | . . . . . . . . . . . . . . . . Shielding Activations . | . . . . . . . . . . . . . . . . Robots Disrupted . | . . . . . . . . . . . . . . . . Combat Hostiles . | . . . . . . . . . . . . . . . . Robots Corrupted 6 | . . . . . . . . . . . 5 1 . . . Combat Hostiles 2 | . . . . . . . . . . . 1 1 . . . Parts Fried 11 | . . . . . . . 3 . . . 7 1 . . . Impact Corruptions 17 | . . . . . . . 3 . . 3 10 1 . . . Robots Melted . | . . . . . . . . . . . . . . . . Combat Hostiles . | . . . . . . . . . . . . . . . . Parts Melted 7 | . 1 . . 1 . . . . . . 1 3 . 1 . Heat Transferred 2501 | . 592 198 259 397 250 . . . . 333 . . . 287 185 Parts Sabotaged . | . . . . . . . . . . . . . . . . Parts Stolen . | . . . . . . . . . . . . . . . . Parts Stripped . | . . . . . . . . . . . . . . . . Power Chain Reactions 4 | . . . . . . . . . . . . . . 4 . Alert | -11 -10 -10 -8 -7 -7 -7 -6 -6 -6 -5 -4 -3 -2 -2 -2 ------- Run | Yrd Mat Sub Mat Fac Was Fac Fac Low Low Fac Fac Res Res Tes Sec Maximum Alert Level 3 | . 1 . 1 . . . . . . . 2 1 1 3 2 Low Security (%) 76 | 100 92 . 68 100 100 100 100 . . 100 25 58 85 2 . Level 1 11 | . 7 . 31 . . . . . . . 16 41 14 12 . Level 2 7 | . . . . . . . . . . . 58 . . 12 100 Level 3 4 | . . . . . . . . . . . . . . 72 . Level 4 . | . . . . . . . . . . . . . . . . Level 5 . | . . . . . . . . . . . . . . . . High Security . | . . . . . . . . . . . . . . . . Max Security . | . . . . . . . . . . . . . . . . Peak Influence 1057 | 10 216 . 280 31 . 84 50 . . 118 562 307 337 1057 681 Initial 575 | . 6 . . 20 . . . . . 2 . 279 100 189 575 Average 145 | 2 112 . 97 5 . 32 11 . . 20 338 173 120 695 610 Influence Increases 5188 | 35 535 60 365 141 . 298 146 70 40 171 822 594 487 1194 230 Destroy 0b10 Robot/C 1760 | . 340 60 40 100 . 80 60 60 40 100 380 20 220 200 60 Destroy 0b10 Robot/NC 290 | 35 40 . 10 . . 40 . . . . 40 55 15 50 5 Destroy Leader 344 | . 80 . 2 40 . 24 10 10 . 10 72 18 42 26 10 Allied During Kill 170 | . . . . . . . . . . . 129 . 41 . . Successful Hack 241 | . 15 . . . . 26 30 . . 3 12 27 10 68 50 Select Force Hacks 210 | . 60 . . . . . . . . . 90 60 . . . Disable Machine 375 | . . . 30 . . 60 45 . . 30 . 15 15 135 45 Destroy Structure 710 | . . . 3 1 . 8 1 . . 28 54 54 39 492 30 Partial Spotted 30 | . . . . . . . . . . . . . 15 15 . Lose Combat Pursuer 630 | . . . . . . 60 . . . . 45 345 90 60 30 Miscellaneous 428 | . . . 280 . . . . . . . . . . 148 . Influence Decreases 4643 | 25 497 108 319 187 . 298 126 60 66 175 290 947 329 508 708 Entered New Map 998 | . 4 24 . 26 . . . 8 6 2 . 253 79 148 448 Time Decay 2145 | 25 443 74 189 111 . 219 96 52 60 32 160 294 150 160 80 Search Patrol Dispatched 100 | . . . 100 . . . . . . . . . . . . Lost Part 880 | . 50 10 30 50 . 79 10 . . 141 10 320 40 20 120 Lost Ally 370 | . . . . . . . 20 . . . 120 80 60 30 60 Purge Threat 150 | . . . . . . . . . . . . . . 150 . Squads Dispatched 63 | . 3 . 1 2 . 3 5 . . 3 8 7 12 12 7 Investigation 25 | . 3 . . 1 . 1 2 . . . 4 3 4 4 3 Extermination 8 | . . . . 1 . 1 1 . . . . 2 1 2 . Reinforcement 17 | . . . 1 . . 1 2 . . . 2 . 4 6 1 Assault 4 | . . . . . . . . . . . . 2 . . 2 Garrison 8 | . . . . . . . . . . 3 2 . 3 . . Intercept 1 | . . . . . . . . . . . . . . . 1 Searches Triggered 1 | . . . 1 . . . . . . . . . . . . Construction Impeded . | . . . . . . . . . . . . . . . . Haulers Reinforced 3 | . . . . . . . . . . . 1 . 1 1 . Active Scanning Responses . | . . . . . . . . . . . . . . . . Cargo Convoy Interrupts 1 | . . . . . . . . . . . . 1 . . . Stealth | -11 -10 -10 -8 -7 -7 -7 -6 -6 -6 -5 -4 -3 -2 -2 -2 --------- Run | Yrd Mat Sub Mat Fac Was Fac Fac Low Low Fac Fac Res Res Tes Sec Distress Signals 10 | . 3 . 1 . . 1 . . . . . 2 1 1 1 Communications Jammed 1 | . . . . . . . . . . . . . . 1 . Distress Signals 1 | . . . . . . . . . . . . . . 1 . Times Spotted 230 | . 22 3 7 6 11 21 6 3 2 13 20 62 22 22 10 Peak Tracking Total 21 | . 3 3 3 3 6 6 3 3 2 4 4 21 16 7 8 Tactical Retreats 29 | . . . . . 1 5 1 . . 3 2 12 3 1 1 ECM-based Alert Blocks 25 | . . . . . . 1 3 . . 7 1 13 . . . Traps | -11 -10 -10 -8 -7 -7 -7 -6 -6 -6 -5 -4 -3 -2 -2 -2 ------- Run | Yrd Mat Sub Mat Fac Was Fac Fac Low Low Fac Fac Res Res Tes Sec Traps Triggered 6 | . 5 . . 1 . . . . . . . . . . . Indirectly . | . . . . . . . . . . . . . . . . Trap Hack Attempts . | . . . . . . . . . . . . . . . . Triggered . | . . . . . . . . . . . . . . . . Disarmed . | . . . . . . . . . . . . . . . . Reprogrammed . | . . . . . . . . . . . . . . . . Reused . | . . . . . . . . . . . . . . . . Traps Extracted . | . . . . . . . . . . . . . . . . Installed . | . . . . . . . . . . . . . . . . Triggered . | . . . . . . . . . . . . . . . . Machines | -11 -10 -10 -8 -7 -7 -7 -6 -6 -6 -5 -4 -3 -2 -2 -2 ---------- Run | Yrd Mat Sub Mat Fac Was Fac Fac Low Low Fac Fac Res Res Tes Sec Machines Disabled 28 | . . 2 2 . . 4 3 . . 2 . 1 1 10 3 Max in Single Turn 1 | . . 1 1 . . 1 1 . . 1 . 1 1 1 1 Garrison Access 2 | . . . . . . . . . . . . 1 . . 1 Machines Repaired . | . . . . . . . . . . . . . . . . Machines Dismantled . | . . . . . . . . . . . . . . . . Machines Sabotaged . | . . . . . . . . . . . . . . . . Overloaded Fab Kills . | . . . . . . . . . . . . . . . . Hacking | -11 -10 -10 -8 -7 -7 -7 -6 -6 -6 -5 -4 -3 -2 -2 -2 --------- Run | Yrd Mat Sub Mat Fac Was Fac Fac Low Low Fac Fac Res Res Tes Sec Machines Accessed 67 | . 9 4 1 1 . 8 4 . . 2 7 6 4 13 8 Terminals 38 | . 7 . 1 . . 4 2 . . 1 2 2 2 10 7 Fabricators 6 | . . . . . . 2 . . . . 1 1 1 1 . Repair Stations 1 | . . . . 1 . . . . . . . . . . . Recycling Units 8 | . 2 . . . . . 1 . . . 3 2 . . . Scanalyzers 6 | . . . . . . 2 . . . . 1 1 . 2 . Garrison Access 4 | . . . . . . . 1 . . 1 . . 1 . 1 Total Hacks 171 | . 22 17 3 1 . 16 11 . . 4 17 16 11 31 22 Successful 109 | . 16 17 3 1 . 9 2 . . 2 8 9 9 22 11 Failed 62 | . 6 . . . . 7 9 . . 2 9 7 2 9 11 Catastrophic 10 | . 2 . . . . 1 1 . . . 1 2 . 1 2 Database Lockouts . | . . . . . . . . . . . . . . . . Manual 70 | . 12 . 1 1 . 5 5 . . 3 7 4 4 12 16 Terminals 105 | . 20 . 3 . . 10 6 . . 2 5 10 6 24 19 Fabricators 12 | . . . . . . 2 . . . . 3 3 2 2 . Repair Stations 1 | . . . . 1 . . . . . . . . . . . Recycling Units 11 | . 2 . . . . . 3 . . . 4 2 . . . Scanalyzers 15 | . . . . . . 4 . . . . 5 1 . 5 . Garrison Access 10 | . . . . . . . 2 . . 2 . . 3 . 3 Terminal Hacks 54 | . 9 17 2 . . 2 1 . . 1 1 5 3 10 3 Record 30 | . 3 14 2 . . . . . . . . 2 2 5 2 Part Schematic 1 | . . . . . . . . . . . . . . 1 . Robot Schematic 1 | . . . . . . . 1 . . . . . . . . Open Door 2 | . . 1 . . . . . . . . . . . 1 . Open DSF 1 | . . . . . . 1 . . . . . . . . . Branch Access Points 2 | . 1 . . . . . . . . . . . 1 . . Emergency Access Points 3 | . 1 . . . . . . . . . 1 . . 1 . Alert Level 1 | . 1 . . . . . . . . . . . . . . Unreport Threat 1 | . . . . . . . . . . . . . . 1 . Locate Traps 2 | . 1 . . . . . . . . . . . . 1 . Dispatch Records 2 | . 1 . . . . 1 . . . . . . . . . Maintenance Status 1 | . . . . . . . . . . 1 . . . . . Transport Status 2 | . 1 . . . . . . . . . . 1 . . . Recall Investigation 1 | . . . . . . . . . . . . . . . 1 Recall Extermination 1 | . . . . . . . . . . . . 1 . . . Zone Layout 1 | . . . . . . . . . . . . 1 . . . Proto ID Catalog 1 | . . 1 . . . . . . . . . . . . . Release Object 1 | . . 1 . . . . . . . . . . . . . Fabricator Hacks 6 | . . . . . . 2 . . . . . . 2 2 . Network Status 1 | . . . . . . 1 . . . . . . . . . Load Schematic 2 | . . . . . . . . . . . . . 1 1 . Build 3 | . . . . . . 1 . . . . . . 1 1 . Repair Station Hacks . | . . . . . . . . . . . . . . . . Recycling Unit Hacks . | . . . . . . . . . . . . . . . . Scanalyzer 9 | . . . . . . 3 . . . . 2 . . 4 . Retrieve Study 9 | . . . . . . 3 . . . . 2 . . 4 . Garrison Access Hacks 1 | . . . . . . . . . . . . . 1 . . Coupler Status 1 | . . . . . . . . . . . . . 1 . . Unauthorized Hacks 39 | . 7 . 1 1 . 2 1 . . 1 5 4 3 6 8 Terminals 28 | . 5 . 1 . . 2 1 . . 1 2 2 2 6 6 Assimilate 2 | . . . . . . . . . . . . . . 1 1 Botnet 26 | . 5 . 1 . . 2 1 . . 1 2 2 2 5 5 Fabricators . | . . . . . . . . . . . . . . . . Repair Stations 1 | . . . . 1 . . . . . . . . . . . Patch 1 | . . . . 1 . . . . . . . . . . . Recycling Units 7 | . 2 . . . . . . . . . 3 2 . . . Tunnel 7 | . 2 . . . . . . . . . 3 2 . . . Scanalyzers . | . . . . . . . . . . . . . . . . Garrison Access 3 | . . . . . . . . . . . . . 1 . 2 Reprogram 2 | . . . . . . . . . . . . . 1 . 1 Watchers 1 | . . . . . . . . . . . . . . . 1 Data Cores Recovered 1 | . . . . . . . . . . . . . . 1 . Used . | . . . . . . . . . . . . . . . . Hacking Detections 49 | . 7 . 1 . . 4 4 . . 2 4 4 4 11 8 Full Trace Events 15 | . 1 . . . . 1 2 . . . 1 1 3 4 2 Feedback Events 3 | . . . . . . . . . . . . . 1 . 2 Corruption 2 | . . . . . . . . . . . . . . . 2 Hackware Fried 1 | . . . . . . . . . . . . . 1 . . Feedback Blocked . | . . . . . . . . . . . . . . . . Robot Schematics Acquired 3 | . . . . . . . 1 . . . . . . 1 1 Robots Built 4 | . . . . . . . . . . . . . 2 2 . Authchips . | . . . . . . . . . . . . . . . . Time 76 | . . . . . . . . . . . . . 38 38 . Total Robot Build Rating 12 | . . . . . . . . . . . . . 6 6 . Part Schematics Acquired 9 | . . . . . . . . . . . . . . 5 4 Parts Built 2 | . . . . . . 2 . . . . . . . . . Authchips . | . . . . . . . . . . . . . . . . Time 42 | . . . . . . 42 . . . . . . . . . Total Part Build Rating 8 | . . . . . . 8 . . . . . . . . . Part Studies Acquired 9 | . . . . . . 3 . . . . 2 . . 4 . Parts Repaired . | . . . . . . . . . . . . . . . . Time . | . . . . . . . . . . . . . . . . Parts Recycled . | . . . . . . . . . . . . . . . . Recycled Matter . | . . . . . . . . . . . . . . . . Retrieved Matter . | . . . . . . . . . . . . . . . . Retrieved Components . | . . . . . . . . . . . . . . . . Parts Scanalyzed . | . . . . . . . . . . . . . . . . Part Schematics Acquired . | . . . . . . . . . . . . . . . . Parts Damaged . | . . . . . . . . . . . . . . . . Bothacking | -11 -10 -10 -8 -7 -7 -7 -6 -6 -6 -5 -4 -3 -2 -2 -2 ------------ Run | Yrd Mat Sub Mat Fac Was Fac Fac Low Low Fac Fac Res Res Tes Sec Used RIF Installer . | . . . . . . . . . . . . . . . . Robots Hacked . | . . . . . . . . . . . . . . . . Non-combat . | . . . . . . . . . . . . . . . . Combat . | . . . . . . . . . . . . . . . . Robot Hacks Applied . | . . . . . . . . . . . . . . . . Relay Couplers Released 2 | . . . . . . . . . . . . 1 . . 1 Machine Destruction 2 | . . . . . . . . . . . . 1 . . 1 Fabnet Peak Effective % . | . . . . . . . . . . . . . . . . Robots Rewired . | . . . . . . . . . . . . . . . . Allies Hacked 1 | . . . . . . . . . . . 1 . . . . Hacks Repelled . | . . . . . . . . . . . . . . . . Allies | -11 -10 -10 -8 -7 -7 -7 -6 -6 -6 -5 -4 -3 -2 -2 -2 -------- Run | Yrd Mat Sub Mat Fac Was Fac Fac Low Low Fac Fac Res Res Tes Sec Total Allies 21 | . . . . . 2 . . . . . 7 . 5 3 4 Largest Group 4 | . . . . . 1 . . . . . 4 . 3 2 4 Highest-Rated Group 237 | . . . . . 21 . . . . . 237 . 207 42 232 Highest-Rated Ally 69 | . . . . . 21 . . . . . 68 . 69 26 58 Total Orders 3 | . . . . . . . 1 . . . 1 1 . . . GUARD 1 | . . . . . . . . . . . 1 . . . . EXPLORE 2 | . . . . . . . 1 . . . . 1 . . . Ally Attacks 124 | . . . . . 6 . . . . . 70 . 24 7 17 Total Damage 5097 | . . . . . 185 . . . . . 3014 . 1023 156 719 Kills 29 | . . . . . . . . . . . 19 . 8 . 2 Allies Corrupted 2 | . . . . . . . . . . . . 1 . 1 . Allies Melted . | . . . . . . . . . . . . . . . . X0-1V1 Amusement Gains 312 | . 21 . 30 10 20 10 . . . 15 . 70 2 74 60 Good Acts 44 | . . 3 . 1 4 1 2 1 2 3 5 10 2 9 1 Bad Acts 49 | . . 6 5 1 3 5 1 2 2 2 2 9 1 7 3 Intel | -11 -10 -10 -8 -7 -7 -7 -6 -6 -6 -5 -4 -3 -2 -2 -2 ------- Run | Yrd Mat Sub Mat Fac Was Fac Fac Low Low Fac Fac Res Res Tes Sec Active Infowar (turns) 5810 | 34 1340 218 541 764 102 439 301 140 123 194 372 632 111 324 175 Optics 263 | . . . . . . . . . . . . 171 92 . . Sensors 2164 | . . . . . . 377 301 140 123 11 205 491 19 324 173 IFF 617 | . . . . . . . . . . . 342 275 . . . Structural 3478 | . 900 218 541 764 102 239 301 140 123 150 . . . . . Traps 496 | . . . . . . . . . . . 15 481 . . . Seismic 1952 | 34 440 . 540 571 102 . . . . 120 145 . . . . Triangulation 446 | . . . . . . . 19 140 123 164 . . . . . Cloaking 135 | . . . . . . . . . . . . 16 . 59 60 Jamming 395 | . . . . . . . . . . . . . . 223 172 ECM 1284 | . . . . . . 11 301 140 123 194 257 258 . . . Robot Analysis Total . | . . . . . . . . . . . . . . . . Derelict Logs Recovered 2 | . . . . . . . . 1 1 . . . . . . Drone Launches 16 | . . . . . . . 6 . . . . 10 . . . Drone Recoveries 2 | . . . . . . . . . . . . 2 . . . Exploration | -11 -10 -10 -8 -7 -7 -7 -6 -6 -6 -5 -4 -3 -2 -2 -2 ------------- Run | Yrd Mat Sub Mat Fac Was Fac Fac Low Low Fac Fac Res Res Tes Sec Turns Passed 7234 | 114 1347 1188 541 764 143 543 301 140 123 194 372 652 313 324 175 Spaces Moved 6811 | 64 728 605 232 212 162 739 445 294 259 231 458 808 478 711 385 Core 173 | 1 1 . . 30 55 . . . . . . 40 42 . 4 Treads 302 | . 18 160 124 . . . . . . . . . . . . Legs 995 | . 399 445 108 43 . . . . . . . . . . . Wheels 373 | 63 310 . . . . . . . . . . . . . . Hover 2554 | . . . . 80 107 739 445 294 259 207 117 306 . . . Flight 2387 | . . . . 59 . . . . . 24 341 462 436 711 354 Fastest Speed 15 | 50 90 160 160 106 46 46 42 45 45 32 20 20 15 15 15 Average Speed 78 | 89 144 182 173 310 60 49 43 45 45 50 48 50 32 19 22 Slowest Speed 835 | 90 450 190 190 835 166 106 45 45 45 77 103 800 200 96 750 Overloaded Moves 1 | . . . . . . . . . . . . . . . 1 Propulsion Burnouts . | . . . . . . . . . . . . . . . . Robots Hopped 5 | . . . . . . . . . . . . . . 1 4 Potential Cave-ins 34 | . . . 17 . . . . . . . . 10 . 3 4 Cave-ins Triggered 4 | . . . 2 . . . . . . . . 2 . . . Spacefolds 9 | . . . . . . . . . . . . . . . 9 Exploration Rate (%) 33 | 3 97 36 21 5 75 27 23 56 42 9 12 21 13 70 24 Regions Visited 15 Branch Regions 5 Pre-discovered Areas 8 | . 2 1 . . . . . . . . 3 2 . . . Known Exits Taken 9 | . . . . . . 1 1 1 1 1 1 1 1 1 . Unknown Exits Taken 4 | 1 1 1 1 . . . . . . . . . . . . Scrap Searched 9 | . . 5 . . . . . 4 . . . . . . . Spaces Dug 114 | . . . 3 . . 8 1 . . . 16 40 15 19 12 Terrain Destroyed 462 | . . . 3 . . 8 1 34 53 16 19 40 15 261 12 Melee 111 | . . . 3 . . 8 1 . . . 16 40 15 19 9 Projectile 10 | . . . . . . . . . . 4 3 . . . 3 AOE 341 | . . . . . . . . 34 53 12 . . . 242 . Terrain Rammed . | . . . . . . . . . . . . . . . . Walls Destroyed . | . . . . . . . . . . . . . . . . Machines Disabled . | . . . . . . . . . . . . . . . . Actions | -11 -10 -10 -8 -7 -7 -7 -6 -6 -6 -5 -4 -3 -2 -2 -2 --------- Run | Yrd Mat Sub Mat Fac Was Fac Fac Low Low Fac Fac Res Res Tes Sec Total 7955 | 92 874 647 346 281 203 840 521 298 261 277 549 943 569 835 419 Wait 207 | . 25 . 69 . 24 24 21 . . 1 9 1 . 20 13 Move 6767 | 63 727 604 229 212 161 738 444 293 258 230 457 807 477 708 359 Hop 5 | . . . . . . . . . . . . . . 1 4 Pick Up 90 | 8 8 3 7 10 4 7 7 1 . 6 8 7 8 5 1 Fast Attach 156 | 7 7 1 2 13 4 14 10 1 . 6 14 20 30 21 6 Attach 64 | . 3 4 8 3 . 8 4 . . 7 8 9 7 3 . Detach 22 | . . . . . . 3 1 . . 1 8 4 2 3 . Swap 24 | . 10 3 . 1 . . 2 . . 1 . 2 . 1 4 Drop 113 | . 9 3 4 10 6 6 10 1 . 1 6 16 10 23 8 Fire 235 | 14 85 26 16 21 4 1 10 2 3 19 11 . 1 15 7 Melee 256 | . . 2 9 11 . 36 10 . . 5 28 72 34 32 17 Ram 4 | . . . . . . 3 . . . . . 1 . . . Kick . | . . . . . . . . . . . . . . . . Crush . | . . . . . . . . . . . . . . . . Escape Stasis 5 | . . . 2 . . . . . . . . . . 3 . Rewire . | . . . . . . . . . . . . . . . . Trap . | . . . . . . . . . . . . . . . . Miscellaneous 7 | . . 1 . . . . 2 . . . . 4 . . . Route ------- -11/Scrapyard -10/Materials (discovered 5 exits: [*Mat x3] / *Min / *Sub) -10/Subcaves -8/Materials -7/Factory -7/Waste -7/Factory -6/Factory -6/Lower Caves -6/Lower Caves -5/Factory -4/Factory (discovered 2 exits: *Res x2) -3/Research -2/Research (discovered 2 exits: *Tes x2) -2/Testing (discovered 2 exits: *Sec / *Frg) -2/Section 7 History --------- Turn | Location | Event 39 | -11/Scrapyard | Discovered new exit (range 13) 115 | -11/Scrapyard | Entered Materials 172 | -10/Materials | Discovered new exit (range 16) 255 | -10/Materials | Discovered new exit (range 15) 311 | -10/Materials | Build established: Mutant 445 | -10/Materials | Discovered new exit (range 14) 669 | -10/Materials | Lost 3 parts (2n1w) 698 | -10/Materials | Identified exit to Mines 733 | -10/Materials | Core integrity fell below 50% 749 | -10/Materials | Discovered new exit (range 13) 1044 | -10/Materials | Build established: Scavenger-Mutant 1422 | -10/Materials | Discovered new exit (range 9) 1450 | -10/Materials | Prayed at D.C.S.S. Altar Unit 1462 | -10/Materials | Entered Subcaves 1517 | -10/Subcaves | Shifting Twisted Machinery released Sub. Power Source 1592 | -10/Subcaves | Energy generation permanently improved by X0-1V1 (+10; -100 max core) 1663 | -10/Subcaves | Visited 4L-MR0's lab 1679 | -10/Subcaves | Found Prototype Device 1681 | -10/Subcaves | Identified Sfc. Transmogrifier 1765 | -10/Subcaves | Found Power Bank 1921 | -10/Subcaves | Released subatomizers from SUBCON Basin 2142 | -10/Subcaves | Build established: Mutant 2367 | -10/Subcaves | X0-1V1 sent hostile S-10 Pest (x3) 2372 | -10/Subcaves | Core integrity fell below 20% 2446 | -10/Subcaves | Visited Clippyterm 2451 | -10/Subcaves | Learned Factory garrison access intel 2451 | -10/Subcaves | Learned location of Deep Caves (-6) 2552 | -10/Subcaves | A swath of the cavern ceiling suddenly collapsed 2626 | -10/Subcaves | Discovered new exit (range 16) 2650 | -10/Subcaves | Entered Materials 2650 | -8/Materials | Evolved 4 slots: Propulsion x1, Utility x3 2881 | -8/Materials | X0-1V1 added 0b10 threat records associated with you (major) 2962 | -8/Materials | X0-1V1 mutated your Propulsion slot to Power slot 3050 | -8/Materials | Search patrols dispatched 3089 | -8/Materials | X0-1V1 vaporized surrounding terrain (radius 24) 3094 | -8/Materials | Discovered new exit (range 15) 3100 | -8/Materials | Crushed by falling debris 3117 | -8/Materials | Crushed by falling debris 3118 | -8/Materials | Core integrity fell below 50% 3148 | -8/Materials | Lost 3 parts (2u1w) 3191 | -8/Materials | Entered Factory 3191 | -7/Factory | Evolved 2 slots: Utility x2 3192 | -7/Factory | Loaded intel: 4 garrison access locations 3673 | -7/Factory | Lost 10 parts (2p2n4u2w) 3876 | -7/Factory | Core integrity fell below 50% 3951 | -7/Factory | Build established: Scavenger-Mutant 3955 | -7/Factory | Sucked down chute 3955 | -7/Factory | Entered Waste 3984 | -7/Waste | Spotted C-40 Crusher 4002 | -7/Waste | Spotted C-40 Crusher 4002 | -7/Waste | Spotted C-40 Crusher 4037 | -7/Waste | Spotted C-40 Crusher 4037 | -7/Waste | Spotted C-40 Crusher 4045 | -7/Waste | X0-1V1 sent allied H-55 Commando (x2) 4054 | -7/Waste | Crushed by Compactor (1 part destroyed, 2 dropped) 4056 | -7/Waste | Crushed by Compactor (1 part destroyed, 2 dropped) 4057 | -7/Waste | Crushed by Compactor (1 part destroyed, 2 dropped) 4059 | -7/Waste | Crushed by Compactor (1 part destroyed) 4063 | -7/Waste | Spotted C-40 Crusher 4087 | -7/Waste | Discovered new exit (range 11) 4090 | -7/Waste | Lost 5 parts (3u2w) 4098 | -7/Waste | Entered Factory 4106 | -7/Factory | Identified exit to DSF 4341 | -7/Factory | Build established: Mutant 4387 | -7/Factory | Fabricated Imp. Field Recycling Unit? 4396 | -7/Factory | Sensors blinded by X0-1V1 4491 | -7/Factory | X0-1V1 announced a LAN party 4602 | -7/Factory | Lost 3 parts (1p1u1w) 4633 | -7/Factory | Core integrity fell below 20% 4636 | -7/Factory | Discovered new exit (range 11) 4641 | -7/Factory | Identified exit to Factory 4641 | -7/Factory | Entered another Factory area 4641 | -6/Factory | Evolved 2 slots: Propulsion x2 4669 | -6/Factory | Lost 5 parts (2p1n2u) 4776 | -6/Factory | Discovered new exit (range 44) 4898 | -6/Factory | Utility slot count permanently improved by X0-1V1 (+1) 4941 | -6/Factory | Identified exit to Lower Caves 4942 | -6/Factory | Entered Lower Caves 5020 | -6/Lower Caves | X0-1V1 sent you into danger 5075 | -6/Lower Caves | Learned Factory stockpile data 5080 | -6/Lower Caves | Discovered new exit (range 4) 5081 | -6/Lower Caves | Identified exit to Lower Caves 5082 | -6/Lower Caves | Entered another Lower Caves area 5098 | -6/Lower Caves | X0-1V1 sent hostile H-55 Commando (x2) 5125 | -6/Lower Caves | Build established: Infiltrator-Ninja 5165 | -6/Lower Caves | Identified exit to Factory 5165 | -6/Lower Caves | X0-1V1 revealed exit location to -5/Factory 5205 | -6/Lower Caves | Entered Factory 5205 | -5/Factory | Evolved 2 slots: Propulsion x1, Utility x1 5264 | -5/Factory | Lost 3 parts (2u1w) 5272 | -5/Factory | Inventory capacity permanently improved by X0-1V1 (+1; -100 max core) 5369 | -5/Factory | Discovered new exit (range 14) 5399 | -5/Factory | Identified exit to Factory 5399 | -5/Factory | Entered another Factory area 5399 | -4/Factory | Evolved 2 slots: Propulsion x1, Utility x1 5413 | -4/Factory | Lost 14 parts (3p4n6u1w) 5461 | -4/Factory | X0-1V1 sent allied Scrapper (x4) 5535 | -4/Factory | X0-1V1 sent you to a vault 5547 | -4/Factory | Lost 3 allies 5579 | -4/Factory | Garrison activated, responded to threat 5587 | -4/Factory | Identified exit to Research 5587 | -4/Factory | X0-1V1 revealed exit location to -3/Research 5762 | -4/Factory | Discovered exit to Research (range 5) 5771 | -4/Factory | Entered Research 5771 | -3/Research | Evolved 2 slots: Propulsion x1, Utility x1 5783 | -3/Research | Lost 3 allies 5840 | -3/Research | X0-1V1 sent hostile Y-64 Sentinel (x1) 5968 | -3/Research | X0-1V1 released a cloud of subatomizers 5968 | -3/Research | X0-1V1 sent you into danger 5973 | -3/Research | Lost 7 allies 5993 | -3/Research | X0-1V1 foreshadows a heat wave 6020 | -3/Research | Crushed by falling debris 6046 | -3/Research | Crushed by falling debris 6046 | -3/Research | System corruption reached 10% 6077 | -3/Research | Lost 6 parts (3n3u) 6098 | -3/Research | Ambient heat levels rising (+10) 6193 | -3/Research | Cargo convoy interrupted 6198 | -3/Research | Ambient heat levels rising (+10) 6237 | -3/Research | Adv. Phase Shifter reconfigured into Item Mimic 6264 | -3/Research | Lost 10 parts (2p3n4u1w) 6269 | -3/Research | Ambient heat levels falling (-10) 6280 | -3/Research | Core integrity fell below 50% 6370 | -3/Research | Lost 9 parts (3n6u) 6384 | -3/Research | Core integrity fell below 20% 6393 | -3/Research | Discovered new exit (range 19) 6406 | -3/Research | Ambient heat levels falling (-10) 6422 | -3/Research | Identified exit to Research 6423 | -3/Research | Entered another Research area 6423 | -2/Research | Evolved 2 slots: Utility x2 6536 | -2/Research | Lost 3 parts (3u) 6625 | -2/Research | Identified exit to Testing 6625 | -2/Research | Hacking Suite fried by hacking feedback 6686 | -2/Research | Found Hvy. Reflective Plating 6726 | -2/Research | Fabricated H-55 Commando? 6736 | -2/Research | Entered Testing 6736 | -2/Testing | X0-1V1 enhanced Transport squad support 6749 | -2/Testing | X0-1V1 announced a LAN party 6753 | -2/Testing | Found Prototype Device 6753 | -2/Testing | Identified Exp. Transmission Jammer 6775 | -2/Testing | Scanned by Researcher 6862 | -2/Testing | Found Prototype Energy Gun 6862 | -2/Testing | Identified Hyp. EM Gauss Rifle 6886 | -2/Testing | Found Adv. Force Booster 6889 | -2/Testing | Found Prototype Device 6889 | -2/Testing | Identified Adv. EM Shield 6911 | -2/Testing | X0-1V1 sent you to a vault 6913 | -2/Testing | Found Prototype Device 6913 | -2/Testing | Identified Adv. Particle Accelerator 6916 | -2/Testing | Found Prototype Device 6916 | -2/Testing | Identified Exp. Cloaking Device 6917 | -2/Testing | Found Hvy. Scimitar of Distortion 6924 | -2/Testing | Found Prototype Processor 6924 | -2/Testing | Identified Exp. Armor Integrity Analyzer 7011 | -2/Testing | Found Prototype Energy Cannon 7011 | -2/Testing | Identified Cld. Nova Cannon 7022 | -2/Testing | X0-1V1 added 0b10 threat records associated with you (minor) 7031 | -2/Testing | X0-1V1 activates XOMVISION 7042 | -2/Testing | Fabricated H-55 Commando? 7047 | -2/Testing | Spotted Fortress 7048 | -2/Testing | Core integrity fell below 50% 7051 | -2/Testing | X0-1V1 vaporized surrounding terrain (radius 21) 7055 | -2/Testing | System corruption reached 10% 7059 | -2/Testing | Discovered new exit (range 7) 7059 | -2/Testing | Discovered new exit (range 6) 7059 | -2/Testing | X0-1V1 sent hostile X-82 Rainmaker (x3) 7060 | -2/Testing | Identified exit to Protoforge 7060 | -2/Testing | Identified exit to Section 7 7060 | -2/Testing | Entered Section 7 7069 | -2/Section 7 | System corruption reached 30% 7097 | -2/Section 7 | Found Alien Artifact 7097 | -2/Section 7 | Identified Spacefold Activator 7110 | -2/Section 7 | Watched by a mysterious "MATRIX" hacker 7140 | -2/Section 7 | Build established: Hacker-Sprinter 7148 | -2/Section 7 | Scanned by Researcher 7170 | -2/Section 7 | X0-1V1 activates XOMVISION 7173 | -2/Section 7 | Found Alien Artifact 7173 | -2/Section 7 | Identified Integrated Dissipator 7173 | -2/Section 7 | Installed Integrated Dissipator, increased core heat dissipation (+20) 7178 | -2/Section 7 | X0-1V1 vaporized surrounding terrain (radius 21) 7181 | -2/Section 7 | Intercept squad dispatched 7186 | -2/Section 7 | Spotted S7 Guard 7190 | -2/Section 7 | Found Alien Artifact 7190 | -2/Section 7 | Identified Core Membrane 7190 | -2/Section 7 | Installed Core Membrane, gained immunity to corruption 7195 | -2/Section 7 | Spotted Tracker 7198 | -2/Section 7 | Spotted Tracker 7216 | -2/Section 7 | Core integrity fell below 20% 7233 | -2/Section 7 | Spotted Combat Programmer 7235 | -2/Section 7 | Spotted Combat Programmer 7235 | -2/Section 7 | Destroyed by Combat Programmer with EMDS Last Messages --------------- 07224_ EMDS Slug penetrates Door. 07226_ EMDS Slug penetrates W-44 Eye. 07226_ Penetrated by EMDS Slug. 07226_ Core Membrane filtered system corruption (1). 07227_ W-44 Eye system terminally corrupted. 07227_ Core Membrane filtered system corruption (1). 07228_ Penetrated by EMDS Slug. 07228_ Cld. Field Propulsion Drive destroyed. 07228_ Cld. Nova Cannon destroyed. 07228_ Core Membrane filtered system corruption (1). 07228_ EMDS Slug penetrates Wall. 07229_ Spacefolded through Wall. 07233_ Spacefolded through Earth. 07233_ Penetrated by EMDS Slug. 07233_ Adv. Sensor Array destroyed. 07233_ Exp. Q-thruster destroyed. 07235_ Penetrated by EMDS Slug. 07235_ Core Membrane filtered system corruption (1). 07235_ X0-1V1 snickers! [Achievement: 20k Club] Map ----- +----------------------------------------------------+ | | | | | | | | | | | | | | | | | ?????????????????????????????????????????????????? | | ????????################?????????????????????????? | | ????????# #?????????????????????????? | | ?######## #?????????????????????????? | | ?# # ##????????????????????????? | | ?# + Y "#????????????????????????? | | ## # ######/#####????????????????????????? | | "" """ # #### #????????????????????????? | | "" """ # """# #????????????????????????? | | "" """ # T"# "" #????????????????????????? | | T """ + """#"" "" ##???????????????????????? | | "" """ # ####"""""" "#???????????????????????? | | "" """ / #??#""""""""#???????????????????????? | | "" """ # #??########"#???????????????????????? | | "" " ##????????###???????????????????????? | | " " s"###???????#????????????????????????? | | " " " ###?########?????????????????????? | | " " " ### @ #?????????????????????? | | """""""" " ## #?????????????????????? | | " " # #?????????????????????? | | ""+"""""""";; #?????????????????????? | | " c s g; ! #?????????????????????? | | " ; #?????????????????????? | | " p ;;;#+###?????????????????????? | | " p + ?????????????????????? | | " "" ; ??H??????????????????? | | " ""T""" ; ""#???????????????????????? | | " """"" ; Y" #???????????????????????? | | """"""";;";;;%c" ???????????????????????? | | """""" ; " ????????????????????????? | | """"" " """";;" "?????????????????????????? | | """"" " " "?????????????????????????? | | """T"""""" ! "?????????????????????????? | | "" " """"??????????????????????????? | | """ "" " "?????????????????????????? | | " " "" """"??????????????????????????? | | " " "" "" ??????????????????????????? | | "+""""""" " "" """???????????????????????????? | | """"""" "" """???????????????????????????? | | T "" ""????????????????????????????? | | "" "" "?????????????????????????????? | | """"""""""" "?????????????????????????????? | +----------------------------------------------------+ Best States ------------- Heat Dissipation 184 Coolant Potential 80 Energy Generation 54 Energy Capacity 1725 Matter Stores 800 Matter Capacity 900 Sight Range 22 Robot Scan Range 16 Terrain Scan Density 185 ECM Strength 1 Jamming Range 22 Cloak Strength 4 Power Amplification 40 Additional Mass Support 6 Base Temperature (-) 200 Corruption Containment 12 Armor Coverage 1200 Resistance: KI 25 Resistance: TH 25 Resistance: EM 50 Utility Shielding 33 Evasion (%) 78 Targeting Accuracy 8 Melee Accuracy 6 Armor Integrity Analysis 50 Recoil Reduction 2 Offensive Hacking 50 Defensive Hacking 12 Item Schematics ----------------- Lgt. Regenerative Plating | -2/Testing | Hacked Imp. Thermal Defense Suite | -2/Testing | Archive Exp. Gyrokinetic Inverter | -2/Testing | Archive Exp. Q-thruster | -2/Testing | Archive Com. Particle Reactor | -2/Testing | Archive Hvy. Tesla Rifle | -2/Section 7 | Archive Imp. Quantum Reactor | -2/Section 7 | Archive Exp. Biometal Leg | -2/Section 7 | Archive Exp. Cooling System | -2/Section 7 | Archive Robot Schematics ------------------ H-55 Commando | -6/Factory | Hacked A-27 Freighter | -2/Testing | Archive G-73 Enforcer | -2/Section 7 | Archive Fabricated ------------ Imp. Field Recycling Unit | x2 | -7/Factory | Preloaded H-55 Commando | x2 | -2/Research H-55 Commando | x2 | -2/Testing Repaired ---------- Nothing Studied --------- Greatsword | -7/Factory | Hacked Imp. Deuterium Engine | -7/Factory | Hacked Lgt. Ion Engine | -7/Factory | Hacked VTOL Module | -4/Factory | Hacked Lgt. Nuclear Core | -4/Factory | Hacked Field Propulsion Array | -2/Testing | Hacked Xenon Bombardment Thruster | -2/Testing | Hacked Adv. Surge Thruster | -2/Testing | Hacked Mic. Antimatter Reactor | -2/Testing | Hacked Alien Tech Used ----------------- Spacefold Activator Integrated Dissipator Core Membrane Achievements -------------- 20k Club Coming In Hot Deadly Force Nope Ooh, Shiny! Origins Signature Confirmed This Is My Hole Walls Are Suggestions Challenges ------------ None Game ------ Seed WeightForceBarrier Manual? 0 Play Time 02:35:51 Cumulative 102.9 hours Start 2026.08.24 @ 13:55:55 End 2026.08.24 @ 17:20:50 Sessions 1 Manual Loads 0 Difficulty Rogue Special Mode None Game No. 92 Rogue 90 Adventurer 2 Explorer 0 Win Type - Total 0 Types 0/0/0/0/0/0/0/0/0/0 Lore% 47 Gallery% 43 Achievement% 35 Wizard Run 0 Options --------- Layout 0 ASCII 0 Keyboard 0 Movement Mouse Keybinds 0 Fullscreen 2 Font 24/Smallcaps Map View 76x50 Zoom Use 0% Tactical HUD 1 Map Filters NONE Filters NONE Steam 1 RUN: accbd6a3-5b89-4d88-a368-96279cd72948